Workbook

Sheet IPCA Capitalizado SAC
A5: MODELO - Deve ser adaptado utilizando os valores, taxas e prazos do contrato
A7: Valores em R$
A8: Saldo
A9: Data | B9: Valor | C9: Juros Prefixados (% a.a.) | D9: Spread BNDES (% a.a.) | E9: Taxa Nominal (% a.a.)
A10: 2025-07-16 | B10: 137775000 | C10: 5.48 | D10: 1.5 | E10: =((1+C10/100)*(1+D10/100)-1)*100 -> 7.0622
A12: Valores em R$
A13: Data de Vencimento | B13: Índice de Atualização | C13: IPCA* | G13: Principal | H13: Dias Úteis | I13: Fator Juros Préfixados | J13: Fator Spread BNDES | K13: Fator Juros | L13: Juros R$ TLPpré | M13: Juros R$ Spread | N13: Juros Compensatórios | O13: Parcelas Restantes | P13: Amortização | Q13: Prestação
C14: Data ref. | D14: Data próx. | E14: % a.m. | F14: dut
A16: 2025-08-15 | B16: =(1+E16/100)^(H16/F16) -> 1.002295533 | C16: 2025-07-15 | D16: 2025-08-15 | E16: 0.24 | F16: =NETWORKDAYS(C16,D16-1,feriados) -> 23 | G16: =round_to_even((B10)*ROUND(B16,15),2) -> 138091267 | H16: =NETWORKDAYS(A10,A16-1,feriados) -> 22 | I16: =(1+$C$10/100)^($H16/252) -> 1.004668506 | J16: =(1+$D$10/100)^($H16/252) -> 1.001300645 | K16: =I16*J16 -> 1.005975223 | L16: =ROUND((B10)*B16*I16-G16,15) -> 644679.9061 | M16: =ROUND( ((B10)*B16*I16*J16) - (G16+L16),15) -> 180446.1614 | N16: =round_to_even(L16+M16,2) -> 825126.07 | Q16: =N16+P16 -> 825126.07
A17: 2025-09-15 | B17: 1.0026 | C17: 2025-08-15 | D17: 2025-09-15 | E17: 0.26 | F17: 21 | G17: =round_to_even((G16-P16)*ROUND(B17,15),2) -> 138450304.3 | H17: =NETWORKDAYS(A16,A17-1,feriados) -> 21 | I17: 1.004455829 | J17: 1.001241488 | K17: =I17*J17 -> 1.005702849 | L17: =ROUND((G16-P16)*B17*I17-G17,15) -> 616910.8999 | M17: =ROUND( ((G16-P16)*B17*I17*J17) - (G17+L17),15) -> 172650.2394 | N17: =round_to_even(L17+M17,2) -> 789561.14 | Q17: =N17+P17 -> 789561.14
A18: 2025-10-15 | B18: 0.9989 | C18: 2025-09-15 | D18: 2025-10-15 | E18: -0.11 | F18: 22 | G18: =round_to_even((G17-P17)*ROUND(B18,15),2) -> 138298008.9 | H18: 22 | I18: 1.004668506 | J18: 1.001300645 | K18: =I18*J18 -> 1.005975223 | L18: =ROUND((G17-P17)*B18*I18-G18,15) -> 645645.0772 | M18: =ROUND( ((G17-P17)*B18*I18*J18) - (G18+L18),15) -> 180716.3146 | N18: =round_to_even(L18+M18,2) -> 826361.39 | Q18: =N18+P18 -> 826361.39
A19: 2025-11-17 | B19: 1.0048 | C19: 2025-10-15 | D19: 2025-11-17 | E19: 0.48 | F19: 23 | G19: =round_to_even((G18-P18)*ROUND(B19,15),2) -> 138961839.4 | H19: 23 | I19: 1.004881228 | J19: 1.001359805 | K19: =I19*J19 -> 1.00624767 | L19: =ROUND((G18-P18)*B19*I19-G19,15) -> 678304.4085 | M19: =ROUND( ((G18-P18)*B19*I19*J19) - (G19+L19),15) -> 189883.3653 | N19: =round_to_even(L19+M19,2) -> 868187.77 | Q19: =N19+P19 -> 868187.77
A20: 2025-12-15 | B20: 1.0009 | C20: 2025-11-15 | D20: 2025-12-15 | E20: 0.09 | F20: 19 | G20: =round_to_even((G19-P19)*ROUND(B20,15),2) -> 139086905.1 | H20: 19 | I20: 1.00403061 | J20: 1.001123184 | K20: 1.005158322 | L20: 560605.1232 | M20: 156849.9072 | N20: =round_to_even(L20+M20,2) -> 717455.03 | Q20: 717455.03
A21: 2026-01-15 | B21: =(1+E21/100)^(H21/F21) -> 1.0018 | C21: 2025-12-15 | D21: 2026-01-15 | E21: 0.18 | F21: 21 | G21: =round_to_even((G20-P20)*ROUND(B21,15),2) -> 139337261.5 | H21: 21 | I21: 1.004455829 | J21: 1.001241488 | K21: =I21*J21 -> 1.005702849 | L21: =ROUND((G20-P20)*B21*I21-G21,15) -> 620863.0245 | M21: =ROUND( ((G20-P20)*B21*I21*J21) - (G21+L21),15) -> 173756.2924 | N21: =round_to_even(L21+M21,2) -> 794619.32 | O21: 239 | P21: =round_to_even(G21/O21,2) -> 583001.09 | Q21: =N21+P21 -> 1377620.41
A22: 2026-02-18 | B22: 1.0033 | C22: 2026-01-15 | D22: 2026-02-18 | E22: 0.33 | F22: 22 | G22: =round_to_even((G21-P21)*ROUND(B22,15),2) -> 139212149.4 | H22: 22 | I22: 1.004668506 | J22: 1.001300645 | K22: 1.005975223 | L22: 649912.7516 | M22: 181910.8372 | N22: =round_to_even(L22+M22,2) -> 831823.59 | O22: =O21-1 -> 238 | P22: =round_to_even(G22/O22,2) -> 584925 | Q22: 1416748.59
A23: 2026-03-16 | B23: =(1+E23/100)^(H23/F23) -> 1.0033 | C23: 2026-02-15 | D23: 2026-03-16 | E23: 0.33 | F23: =NETWORKDAYS(C23,D23-1,feriados) -> 18 | G23: =round_to_even((G22-P22)*ROUND(B23,15),2) -> 139084694.3 | H23: =NETWORKDAYS(A22,A23-1,feriados) -> 18 | I23: 1.003818069 | J23: 1.001064038 | K23: =I23*J23 -> 1.004886169 | L23: =ROUND((G22-P22)*B23*I23-G23,15) -> 531034.901 | M23: =ROUND( ((G22-P22)*B23*I23*J23) - (G23+L23),15) -> 148556.4424 | N23: =round_to_even(L23+M23,2) -> 679591.34 | O23: 237 | P23: =round_to_even(G23/O23,2) -> 586855.25 | Q23: =N23+P23 -> 1266446.59
A24: 2026-04-15 | B24: 1.007 | C24: 2026-03-15 | D24: 2026-04-15 | E24: 0.7 | F24: 21 | G24: =round_to_even((G23-P23)*ROUND(B24,15),2) -> 139467323.9 | H24: 21 | I24: 1.004455829 | J24: 1.001241488 | K24: 1.005702849 | L24: 621442.5646 | M24: 173918.4828 | N24: =round_to_even(L24+M24,2) -> 795361.05 | O24: 236 | P24: =round_to_even(G24/O24,2) -> 590963.24 | Q24: 1386324.29
A25: Continua...
A26: * Disponível em Moedas Contratuais, no site do BNDES, cód TLP IPCA (236). Se a taxa vigente para o período de cálculo ainda não tiver sido divulgada, o sistema projeta utilizando a última disponível.

Sheet Feriados
A1: FERIADOS
A2: 2009-01-01
A3: 2009-02-23
A4: 2009-02-24
A5: 2009-04-10
A6: 2009-04-21
A7: 2009-05-01
A8: 2009-06-11
A9: 2009-09-07
A10: 2009-10-12
A11: 2009-11-02
A12: 2009-11-15
A13: 2009-12-25
A14: 2010-01-01
A15: 2010-02-15
A16: 2010-02-16
A17: 2010-04-02
A18: 2010-04-21
A19: 2010-05-01
A20: 2010-06-03
A21: 2010-09-07
A22: 2010-10-12
A23: 2010-11-02
A24: 2010-11-15
A25: 2010-12-25
A26: 2011-01-01
A27: 2011-03-07
A28: 2011-03-08
A29: 2011-04-21
A30: 2011-04-22
A31: 2011-05-01
A32: 2011-06-23
A33: 2011-09-07
A34: 2011-10-12
A35: 2011-11-02
A36: 2011-11-15
A37: 2011-12-25
A38: 2012-01-01
A39: 2012-02-20
A40: 2012-02-21
A41: 2012-04-06
A42: 2012-04-21
A43: 2012-05-01
A44: 2012-06-07
A45: 2012-09-07
A46: 2012-10-12
A47: 2012-11-02
A48: 2012-11-15
A49: 2012-12-25
A50: 2013-01-01
A51: 2013-02-11
A52: 2013-02-12
A53: 2013-03-29
A54: 2013-04-21
A55: 2013-05-01
A56: 2013-05-30
A57: 2013-09-07
A58: 2013-10-12
A59: 2013-11-02
A60: 2013-11-15
A61: 2013-12-25
A62: 2014-01-01
A63: 2014-03-03
A64: 2014-03-04
A65: 2014-04-18
A66: 2014-04-21
A67: 2014-05-01
A68: 2014-06-19
A69: 2014-09-07
A70: 2014-10-12
A71: 2014-11-02
A72: 2014-11-15
A73: 2014-12-25
A74: 2015-01-01
A75: 2015-02-16
A76: 2015-02-17
A77: 2015-04-03
A78: 2015-04-21
A79: 2015-05-01
A80: 2015-06-04
A81: 2015-09-07
A82: 2015-10-12
A83: 2015-11-02
A84: 2015-11-15
A85: 2015-12-25
A86: 2016-01-01
A87: 2016-02-08
A88: 2016-02-09
A89: 2016-03-25
A90: 2016-04-21
A91: 2016-05-01
A92: 2016-05-26
A93: 2016-09-07
A94: 2016-10-12
A95: 2016-11-02
A96: 2016-11-15
A97: 2016-12-25
A98: 2017-01-01
A99: 2017-02-27
A100: 2017-02-28
A101: 2017-04-14
A102: 2017-04-21
A103: 2017-05-01
A104: 2017-06-15
A105: 2017-09-07
A106: 2017-10-12
A107: 2017-11-02
A108: 2017-11-15
A109: 2017-12-25
A110: 2018-01-01
A111: 2018-02-12
A112: 2018-02-13
A113: 2018-03-30
A114: 2018-04-21
A115: 2018-05-01
A116: 2018-05-31
A117: 2018-09-07
A118: 2018-10-12
A119: 2018-11-02
A120: 2018-11-15
A121: 2018-12-25
A122: 2019-01-01
A123: 2019-03-04
A124: 2019-03-05
A125: 2019-04-19
A126: 2019-04-21
A127: 2019-05-01
A128: 2019-06-20
A129: 2019-09-07
A130: 2019-10-12
A131: 2019-11-02
A132: 2019-11-15
A133: 2019-12-25
A134: 2020-01-01
A135: 2020-02-24
A136: 2020-02-25
A137: 2020-04-10
A138: 2020-04-21
A139: 2020-05-01
A140: 2020-06-11
A141: 2020-09-07
A142: 2020-10-12
A143: 2020-11-02
A144: 2020-11-15
A145: 2020-12-25
A146: 2021-01-01
A147: 2021-02-15
A148: 2021-02-16
A149: 2021-04-02
A150: 2021-04-21
A151: 2021-05-01
A152: 2021-06-03
A153: 2021-09-07
A154: 2021-10-12
A155: 2021-11-02
A156: 2021-11-15
A157: 2021-12-25
A158: 2022-01-01
A159: 2022-02-28
A160: 2022-03-01
A161: 2022-04-15
A162: 2022-04-21
A163: 2022-05-01
A164: 2022-06-16
A165: 2022-09-07
A166: 2022-10-12
A167: 2022-11-02
A168: 2022-11-15
A169: 2022-12-25
A170: 2023-01-01
A171: 2023-02-20
A172: 2023-02-21
A173: 2023-04-07
A174: 2023-04-21
A175: 2023-05-01
A176: 2023-06-08
A177: 2023-09-07
A178: 2023-10-12
A179: 2023-11-02
A180: 2023-11-15
A181: 2023-12-25
A182: 2024-01-01
A183: 2024-02-12
A184: 2024-02-13
A185: 2024-03-29
A186: 2024-04-21
A187: 2024-05-01
A188: 2024-05-30
A189: 2024-09-07
A190: 2024-10-12
A191: 2024-11-02
A192: 2024-11-15
A193: 2024-11-20
A194: 2024-12-25
A195: 2025-01-01
A196: 2025-03-03
A197: 2025-03-04
A198: 2025-04-18
A199: 2025-04-21
A200: 2025-05-01
... 462 more rows

Sheet Série IPCA
J14: Atenção:
J15: Atualizar a tabela com a taxa disponível no site do BNDES, em Moedas Contratuais, Sigla: cód TLP IPCA (236)
J16: https://www.bndes.gov.br/SiteBNDES/bndes/bndes_pt/Galerias/Convivencia/Moedas_Contratuais/index.html
J17: Se a taxa ainda não tiver sido divulgada, o sistema projeta utilizando a última disponível.
